[Event "4th Tata Steel India Blitz Open 2022"]
[Site "Kolkota"]
[Date "2022.12.03"]
[Round "1.4"]
[White "Abdusattorov, Nodirbek"]
[Black "Erigaisi Arjun"]
[Result "0-1"]
[ECO "C02"]
[WhiteElo "2713"]
[BlackElo "2718"]
[Annotator "TA"]
[PlyCount "100"]
[EventDate "2022.11.29"]
[EventType "tourn"]
[EventCountry "IND"]
[SourceTitle "playchess.com"]
[Source "ChessBase"]
[SourceQuality "1"]
[TimeControl "180+2"]

{[%evp 9,100,-19,0,-17,12,-27,0,5,7,12,45,17,30,7,52,62,59,59,51,13,51,8,27,-89,-39,-94,-47,-81,0,-57,-57,-152,-149,-255,-212,-245,-128,-133,-110,-133,-145,-146,-112,-110,-77,-182,-174,-166,-179,-172,-184,-161,-143,-315,-309,-299,-300,-297,-295,-284,-252,-445,-362,-508,-504,-509,-506,-641,-621,-636,-541,-605,-603,-749,-741,-885,-943,-2893,-3015,-10935,-8667,-5210,-2650,-2566,-2416,-29984,-1325,-1710,-1539,-1509,-1383,-29982,-29983]} 1. e4 {[%emt 0:00:01]} e6 {[%emt 0:00:01]} 2. d4 {[%emt 0:00:02]} d5 {[%emt 0:00:01]} 3. e5 {[%emt 0:00:01]} c5 {[%emt 0:00:02]} 4. Nf3 {[%emt 0:00:04]} Nc6 {[%emt 0:00:03]} 5. Bd3 {[%emt 0:00:02]} Bd7 {[%emt 0:00:14]} 6. O-O {[%emt 0:00:02] C02: French: Advance Variation.} Nge7 $5 {[%emt 0:00:07][%mdl 4] Leaves trodden paths.} 7. Re1 {[%emt 0:00:13] [#]} c4 $146 {[%emt 0:00:07]} ({Predecessor:} 7... cxd4 8. Bf4 Ng6 9. Bg3 Be7 10. Nbd2 Qb6 11. Nb3 Rc8 12. h4 Qd8 13. h5 Nh4 14. Nfxd4 Nxd4 15. Nxd4 {0-1 (40) Schmidt,H (2215)-Kolthoff,S (2036) Oldenburg 2000}) 8. Bf1 {[%emt 0:00:01] The position is equal.} Nf5 {[%emt 0:00:03]} 9. Nc3 {[%emt 0:00:16]} h5 {[%emt 0:00:05]} 10. Ne2 {[%emt 0:00:06]} Be7 {[%emt 0:00:07]} 11. Ng3 {[%emt 0:00:06]} g5 {[%emt 0:00:26]} 12. Nxf5 {[%emt 0:00:21]} exf5 {[%emt 0:00:02]} 13. h4 {[%emt 0:00:01]} gxh4 {[%emt 0:00:05]} 14. Bf4 {[%emt 0:00:02]} Be6 {[%emt 0:00:06]} 15. b3 {[%emt 0:00:01]} Rg8 {[%emt 0:00:15]} 16. bxc4 {[%emt 0:00:02]} (16. c3 $11) 16... dxc4 {[%emt 0:00:02]} ({Black should try} 16... Rg4 $17 17. Bd2 dxc4) 17. Rb1 {[%emt 0:00:02]} (17. c3 $15) 17... Qd7 {[%emt 0:00:07] Black is more active.} ({Black should play} 17... Rg4 $17 18. Bd2 Qd5) 18. c3 $15 {[%emt 0:00:09]} Bd5 {[%emt 0:00:07]} (18... Rg4 $17 19. Bd2 O-O-O) 19. Rb5 {[%emt 0:00:14]} (19. Nd2 $1 $11 Rg4 20. Nxc4 Rxf4 21. Rb5) 19... Rg4 {[%emt 0:00:15]} (19... h3 20. Rxd5 Qxd5 21. g3 $11) 20. Bh2 {[%emt 0:00:37] [#]} ({Better is} 20. Rxd5 $15 Qxd5 21. Bc1) 20... O-O-O $1 $17 {[%emt 0:00:16][%cal Oc6d4]} 21. Re3 {[%emt 0:00:25]} (21. Rxd5 $17 Qxd5 22. Kh1) 21... f4 {[%emt 0:00:08]} 22. Re1 {[%emt 0:00:23]} Rdg8 {[%emt 0:00:02]} (22... h3 23. Rxd5 Qxd5 24. g3) (22... Bxf3 $19 23. Qxf3 {[#]} Nxd4 $1 {[%mdl 512]} 24. cxd4 Qxb5 25. Bxf4 Rxd4) 23. Kh1 {[%emt 0:00:07]} a6 {[%emt 0:00:17]} ({Not} 23... h3 24. gxh3 R4g7 25. Qe2 $15) 24. Rxd5 {[%emt 0:00:02][%mdl 64]} Qxd5 {[%emt 0:00:02]} 25. a4 {[%emt 0:00:13]} Bd8 {[%emt 0:00:14] Hoping for ...Ba5.} 26. Qe2 {[%emt 0:00:02]} Na5 {[%emt 0:00:06]} ({Don't play} 26... h3 27. gxh3 R4g7 28. Qe4 Qxe4 29. Rxe4 $15) (26... b5 {feels hotter.} 27. Nd2 h3 28. Qf3 hxg2+ 29. Bxg2 Qxf3 30. Bxf3 Ba5) 27. Rb1 {[%emt 0:00:15]} (27. Nd2 $17 {keeps fighting.}) 27... Bc7 {[%emt 0:00:03]} 28. Re1 {[%emt 0:00:01]} Kb8 {[%emt 0:00:05]} 29. Rb1 {[%emt 0:00:01]} Ka8 {[%emt 0:00:02][%cal Of7f6]} 30. Re1 {[%emt 0:00:01]} R8g6 {[%emt 0:00:05]} 31. Ng1 $2 {[%emt 0:00:01] Loses the game.} (31. Qe4 $17 {might work better.} Qxe4 32. Rxe4) 31... Rxg2 $1 $19 {[%emt 0:00:07][%csl Gg6][%cal Rg2g1]} 32. Nf3 {[%emt 0:00:00]} R2g4 {[%emt 0:00:05] Threatens to win with ...f5.} 33. Qe4 {[%emt 0:00:04]} Qxe4 {[%emt 0:00:04]} 34. Rxe4 {[%emt 0:00:01]} Rb6 {[%emt 0:00:02] White must now prevent ...Rb1.} 35. Re1 {[%emt 0:00:08] Against Rb1} (35. Bh3 {was necessary.} Rb1+ 36. Re1 Rxe1+ 37. Nxe1) 35... Rb2 {[%emt 0:00:02]} 36. Bg1 {[%emt 0:00:02]} (36. d5 $142) 36... Rc2 {[%emt 0:00:07]} 37. d5 {[%emt 0:00:01]} Rxc3 {[%emt 0:00:02]} 38. d6 {[%emt 0:00:04]} Bd8 {[%emt 0:00:01]} 39. Nd4 {[%emt 0:00:01]} Bb6 {[%emt 0:00:08] Against e6} 40. Nf5 {[%emt 0:00:01]} h3 {[%emt 0:00:04]} 41. Be2 {[%emt 0:00:03]} Rg5 {[%emt 0:00:02]} 42. Ne7 {[%emt 0:00:04]} Rxe5 {[%emt 0:00:01] aiming for ...f3.} 43. Rd1 {[%emt 0:00:02]} Rxe2 {[%emt 0:00:02]} 44. Nd5 {[%emt 0:00:01]} Rd3 {[%emt 0:00:03]} 45. Nxb6+ {[%emt 0:00:01]} Kb8 {[%emt 0:00:01]} 46. Rc1 {[%emt 0:00:04]} Rxd6 {[%emt 0:00:01]} 47. f3 {[%emt 0:00:01]} Rc6 {[%emt 0:00:03]} (47... Rdd2 $142 48. Na8 Kxa8 49. Rf1 c3 50. Ra1 c2 51. Re1 h2 52. Bf2 Rd1 53. Kxh2 Rdxe1 54. Kh3 Rxf2 55. Kh4 Rg1 56. Kxh5 Rh2#) 48. Rd1 {[%emt 0:00:03]} Rce6 {[%emt 0:00:04]} ({Weaker is} 48... c3 49. Rd8+ Kc7 50. Rd7+ Kb8 51. Rd8+ Kc7 52. Rd7+ Kb8 53. Rd8+ $11) 49. Rd8+ {[%emt 0:00:01]} Kc7 {[%emt 0:00:01]} 50. Rd5 {[%emt 0:00:02]} Rxb6 {[%emt 0:00:02] Weighted Error Value: White=0.62/Black=0.22 (precise)} 0-1

[Event "4th Tata Steel India Blitz Open 2022"]
[Site "Kolkota"]
[Date "2022.12.03"]
[Round "1.5"]
[White "Vidit, Santosh Gujrathi"]
[Black "Maghsoodloo, Parham"]
[Result "0-1"]
[ECO "D02"]
[WhiteElo "2724"]
[BlackElo "2720"]
[Annotator "TA"]
[PlyCount "132"]
[EventDate "2022.11.29"]
[EventType "tourn"]
[EventCountry "IND"]
[SourceTitle "playchess.com"]
[Source "ChessBase"]
[SourceQuality "1"]
[TimeControl "180+2"]

{[%evp 9,131,6,13,9,12,13,10,16,29,16,14,11,13,15,9,12,16,0,0,0,12,5,13,6,6,0,0,0,0,0,0,-24,-26,-23,-23,-23,-23,-23,-23,-23,-24,-35,-4,-22,-21,-22,-15,-29,-35,-31,0,-27,-25,-54,0,0,0,0,0,0,0,0,47,0,0,0,10,10,9,8,16,-17,0,-25,12,-10,0,0,0,0,0,0,0,0,0,0,0,0,0,0,0,0,32,0,0,0,0,0,6,0,0,0,0,0,0,3,268,0,0,-1897,-1811,-1497,-1122,-1329,-1244,-29992,-1454,-29993,-29994,-29999,-29998,-29998,-29999,-29999]} 1. d4 {[%emt 0:00:02]} Nf6 {[%emt 0:00:01]} 2. Nf3 {[%emt 0:00:01]} d5 {[%emt 0:00:02]} 3. Bf4 {[%emt 0:00:04]} c5 {[%emt 0:00:02]} 4. e3 {[%emt 0:00:01]} Nc6 {[%emt 0:00:01]} 5. Nbd2 {[%emt 0:00:02]} cxd4 {[%emt 0:00:11]} 6. exd4 {[%emt 0:00:01] D02: 1 d4 d5 2 Nf3 sidelines, including 2...Nf6 3 g3 and 2...Nf6 3 Bf4.} Qb6 {[%emt 0:00:01][%csl LRb2,LRd4]} 7. Nb3 {[%emt 0:00:03]} Bf5 $1 {[%emt 0:00:04][%mdl 4] is more profitable than 7...Bg4 at the moment.} 8. c3 {[%emt 0:00:28] The position is equal.} e6 {[%emt 0:00:04]} 9. a4 {[%emt 0:00:14] aiming for a5.} (9. Nh4 $5 {[%cal Rh4f5]}) 9... a6 {[%emt 0:00:05]} 10. a5 {[%emt 0:00:01]} Qd8 {[%emt 0:00:02]} 11. Be2 {[%emt 0:00:09]} Be7 {[%emt 0:00:23]} 12. O-O {[%emt 0:00:08]} O-O {[%emt 0:00:03]} 13. Re1 {[%emt 0:00:04]} Re8 {[%emt 0:00:21]} 14. Ne5 {[%emt 0:00:22] [#]} Nxe5 $146 {[%emt 0:00:22]} ({Predecessor:} 14... h6 15. h3 Rc8 16. Nxc6 Rxc6 17. Nd2 Nd7 18. Bf1 Bf8 19. Qb3 Qc8 20. Bh2 Nf6 {1-0 (73) Kamsky,G (2658)-Maghsoodloo,P (2698) Europe Echecs INT 2021}) 15. Bxe5 {[%emt 0:00:02]} Nd7 {[%emt 0:00:02]} 16. Bg3 {[%emt 0:00:04]} h6 {[%emt 0:00:28]} 17. Bd3 {[%emt 0:00:07]} Bxd3 {[%emt 0:00:04]} 18. Qxd3 {[%emt 0:00:01]} b5 {[%emt 0:00:01]} 19. axb6 {[%emt 0:00:15]} Qxb6 {[%emt 0:00:02]} 20. Nd2 {[%emt 0:00:30]} Qb5 {[%emt 0:00:10]} (20... Qxb2 $2 21. Reb1 $18 (21. Rxa6 $2 {too greedy.} Rxa6 22. Qxa6 Qxd2 $19) (21. Rxa6 $2 {loses.} Rxa6 22. Qxa6 Qxd2 $19)) 21. Qc2 {[%emt 0:00:09]} a5 {[%emt 0:00:26]} 22. Ra2 {[%emt 0:00:03]} Rec8 {[%emt 0:00:03]} 23. Rea1 {[%emt 0:00:04]} Nb6 {[%emt 0:00:02]} 24. h3 {[%emt 0:00:35]} a4 {[%emt 0:00:03]} 25. Bf4 {[%emt 0:00:05]} Bf6 {[%emt 0:00:21]} (25... Qe2 {looks sharper.} 26. Qb1 Bh4 27. g3 g5) 26. Be3 {[%emt 0:00:01]} (26. Nf3 {seems wilder.} Nc4 27. Nd2 a3 28. Nxc4 Qxc4 29. Rxa3 Rxa3 30. Rxa3 Qxd4 31. Ra8) 26... Rab8 {[%emt 0:00:15]} 27. Qd1 {[%emt 0:00:02]} Rb7 {[%emt 0:00:03]} 28. Qg4 {[%emt 0:00:03]} Kh8 {[%emt 0:00:05]} 29. Qh5 {[%emt 0:00:02][%cal Oe3h6]} Kg8 {[%emt 0:00:06]} 30. Qg4 {[%emt 0:00:01]} (30. Ne4 $5 Be7 $8 31. Nc5 $11) 30... Kf8 {[%emt 0:00:02]} 31. Qh5 {[%emt 0:00:05]} Rbc7 {[%emt 0:00:02]} (31... Be7 $15) 32. Ne4 {[%emt 0:00:02][%cal Oe3h6] Black must now prevent Bxh6!} Be7 {[%emt 0:00:04]} 33. Nc5 {[%emt 0:00:03]} Bxc5 {[%emt 0:00:02]} 34. dxc5 {[%emt 0:00:01]} Nc4 {[%emt 0:00:01]} 35. Bd4 {[%emt 0:00:03]} f6 {[%emt 0:00:03]} (35... Nxb2 $2 36. Rb1 $18) (35... e5 $1 $11 36. Bxe5 Nxe5 37. Qxe5 Rxc5) 36. Rxa4 {[%emt 0:00:06]} (36. f4 $1 $14 {was preferrable.}) 36... e5 $1 $11 {[%emt 0:00:01][%cal Ob5b2]} 37. Rb4 {[%emt 0:00:05]} Qd7 {[%emt 0:00:04]} (37... Qc6 $5 {[%cal Re5d4]}) 38. Be3 {[%emt 0:00:04]} Nxe3 $1 {[%emt 0:00:02]} 39. fxe3 {[%emt 0:00:01]} Rxc5 {[%emt 0:00:01]} 40. Kh2 {[%emt 0:00:02]} (40. Qd1 {simplifies} Rb5 41. Qa4 Rb7 42. Qxd7 Rxd7 43. Raa4) 40... Kg8 {[%emt 0:00:03]} (40... d4 $5) 41. Ra6 {[%emt 0:00:02][%cal Oa6f6]} Kh7 {[%emt 0:00:01][%cal Od5d4]} (41... d4 $5) 42. Rab6 {[%emt 0:00:02]} Rc4 {[%emt 0:00:02]} 43. Rb7 {[%emt 0:00:01]} R8c7 {[%emt 0:00:02]} 44. Rxc7 {[%emt 0:00:04]} Rxc7 {[%emt 0:00:02][%mdl 4096] Endgame KQR-KQR} 45. Qd1 {[%emt 0:00:02]} Qc6 {[%emt 0:00:03]} 46. Qd3+ {[%emt 0:00:01]} e4 {[%emt 0:00:02]} 47. Qd4 {[%emt 0:00:01]} Qd6+ {[%emt 0:00:03]} 48. Kg1 {[%emt 0:00:02]} Qg3 {[%emt 0:00:01]} 49. Ra4 {[%emt 0:00:04]} Rb7 {[%emt 0:00:03]} 50. b4 {[%emt 0:00:02]} Re7 {[%emt 0:00:02]} 51. Ra1 {[%emt 0:00:02]} (51. Ra5 {keeps more tension.} f5 52. Rxd5 f4 53. exf4 Qxf4 54. Qd2) 51... Re5 {[%emt 0:00:02]} 52. Qd2 {[%emt 0:00:04]} Rg5 {[%emt 0:00:01]} 53. Kh1 {[%emt 0:00:01]} Qb8 {[%emt 0:00:02]} 54. Rb1 {[%emt 0:00:01]} Qb5 {[%emt 0:00:01]} 55. Kg1 {[%emt 0:00:03]} h5 {[%emt 0:00:01]} 56. Rb2 {[%emt 0:00:02]} Rf5 {[%emt 0:00:02] [#] Hoping for ...Rf1+.} 57. Qe2 {[%emt 0:00:01] Against Rf1+} Qa4 {[%emt 0:00:02][%mdl 8192]} (57... Qb6 $11 {and Black stays safe.}) 58. Qc2 $2 {[%emt 0:00:03]} ({White must play} 58. b5 $18) 58... Qa7 {[%emt 0:00:02]} 59. Qd2 {[%emt 0:00:02][%mdl 8192]} (59. Qc1 $11) 59... Qa1+ $19 {[%emt 0:00:04]} ({Not} 59... Qa6 60. Qe1 $11) 60. Kh2 {[%emt 0:00:01] [#]} Rf1 $1 {[%emt 0:00:01] ( -> ...h4)} 61. Qe2 {[%emt 0:00:03]} g6 {[%emt 0:00:01] And now ...Rh1+ would win.} 62. h4 {[%emt 0:00:02]} Rh1+ {[%emt 0:00:02]} 63. Kg3 {[%emt 0:00:00]} Qg1 {[%emt 0:00:02] Black mates.} 64. Qa6 {[%emt 0:00:06]} Qh2+ {[%emt 0:00:04]} 65. Kf2 {[%emt 0:00:00]} Qxh4+ {[%emt 0:00:01]} 66. Ke2 {[%emt 0:00:00]} Qe1# {[%emt 0:00:02] Weighted Error Value: White=0.23 (precise) /Black=0.13 (very precise)} 0-1

[Event "4th Tata Steel India Blitz Open 2022"]
[Site "Kolkota"]
[Date "2022.12.03"]
[Round "2.1"]
[White "Mamedyarov, Shakhriyar"]
[Black "Rameshbabu, Praggnanandhaa"]
[Result "1-0"]
[ECO "E11"]
[WhiteElo "2741"]
[BlackElo "2678"]
[Annotator "TA"]
[PlyCount "111"]
[EventDate "2022.11.29"]
[EventType "tourn"]
[EventCountry "IND"]
[SourceTitle "playchess.com"]
[Source "ChessBase"]
[SourceQuality "1"]
[TimeControl "180+2"]

{[%evp 10,111,33,18,23,10,24,0,0,0,0,0,0,0,0,0,20,7,0,7,-4,12,10,-9,0,-8,26,12,43,24,46,50,45,58,83,77,76,83,143,135,154,87,111,59,141,83,107,91,143,152,140,152,194,204,229,219,241,242,254,224,301,115,791,705,702,668,619,434,422,390,497,435,1048,1024,1355,1417,1890,1687,5524,2581,12844,5097,29967,29944,29976,29973,29969,1667,1177,0,29966,6790,6019,29961,12799,12818,12822,12822,10011,10011,10262,6629,5509,4133]} 1. d4 {[%emt 0:00:00]} Nf6 {[%emt 0:00:01]} 2. c4 {[%emt 0:00:01]} e6 {[%emt 0:00:01]} 3. Nf3 {[%emt 0:00:01]} Bb4+ {[%emt 0:00:03]} 4. Nbd2 {[%emt 0:00:02]} O-O {[%emt 0:00:03]} 5. a3 {[%emt 0:00:05]} Be7 {[%emt 0:00:02]} 6. e4 {[%emt 0:00:01]} d6 {[%emt 0:00:01] E11: Bogo-Indian.} 7. Qc2 {[%emt 0:00:18]} Nfd7 {[%emt 0:00:09]} 8. b3 $5 {[%emt 0:00:15][%mdl 4] Leaves trodden paths.} e5 {[%emt 0:00:03] The position is equal.} 9. Bb2 {[%emt 0:00:01]} exd4 {[%emt 0:00:07]} 10. Nxd4 {[%emt 0:00:01]} Bf6 {[%emt 0:00:01]} 11. Be2 {[%emt 0:00:06] [#]} a5 $146 {[%emt 0:00:16]} ({Predecessor:} 11... Ne5 12. O-O Nbc6 13. Nf5 Ng6 14. g3 Re8 15. Rfe1 Nf8 16. Rad1 Bxb2 17. Qxb2 Bxf5 18. exf5 {½-½ (23) Swiercz,D (2665)-Gareyev,T (2565) San Salvador 2022}) 12. O-O {[%emt 0:00:03]} Re8 {[%emt 0:00:01]} 13. Rad1 {[%emt 0:00:05]} Nc6 {[%emt 0:00:03]} 14. Nb5 {[%emt 0:00:21]} Bxb2 {[%emt 0:00:12]} 15. Qxb2 {[%emt 0:00:01]} Nc5 {[%emt 0:00:02]} 16. Qc2 {[%emt 0:00:21]} Bd7 {[%emt 0:00:23]} 17. Rfe1 {[%emt 0:00:04]} Ne5 {[%emt 0:00:07]} 18. Nc3 {[%emt 0:00:03]} Bc6 {[%emt 0:00:05]} 19. Nf1 {[%emt 0:00:34][%cal Bd2f1,Bf1e3,Be3d5][%mdl 32]} (19. f4 $5 {[%cal Rf4e5]} Ned7 20. Nd5 $11) 19... Qg5 {[%emt 0:00:22][%cal Of7f5]} 20. Ne3 {[%emt 0:00:19] Against f5} Ng6 {[%emt 0:00:22][%cal Rc5e4]} 21. Ned5 $1 {[%emt 0:00:16]} Rac8 {[%emt 0:01:06]} 22. g3 {[%emt 0:00:03]} Bxd5 {[%emt 0:00:05]} 23. cxd5 {[%emt 0:00:05]} Qf6 {[%emt 0:00:01]} (23... h5 $142) 24. f4 $16 {[%emt 0:00:09]} c6 {[%emt 0:00:01]} 25. dxc6 {[%emt 0:00:02]} ({White should play} 25. b4 axb4 26. axb4) 25... bxc6 {[%emt 0:00:01] [#]} 26. Bc4 {[%emt 0:00:03]} (26. b4 $1 $16 {[%cal Rb4c5]} axb4 27. axb4) 26... Rcd8 {[%emt 0:00:03]} (26... Red8 $14) 27. Qd2 {[%emt 0:00:01]} (27. b4 $142 axb4 28. axb4) 27... Nf8 {[%emt 0:00:05]} 28. Kg2 {[%emt 0:00:08]} Qe7 {[%emt 0:00:05]} (28... Nce6 $142) 29. b4 {[%emt 0:00:07] White is more active.} axb4 {[%emt 0:00:01]} 30. axb4 {[%emt 0:00:01]} Nce6 {[%emt 0:00:01][%cal Od6d5]} 31. b5 {[%emt 0:00:01]} d5 {[%emt 0:00:06]} 32. exd5 {[%emt 0:00:02]} cxd5 {[%emt 0:00:01]} 33. Bxd5 {[%emt 0:00:02]} Qc5 {[%emt 0:00:04]} 34. Qd3 {[%emt 0:00:14]} Ng6 {[%emt 0:00:04]} 35. Qc4 {[%emt 0:00:05]} (35. Kh1 $18 {is more deadly.}) 35... Qb6 $2 {[%emt 0:00:01][%mdl 8192]} (35... Rxd5 $16 36. Qxd5 Qxc3) 36. Bxe6 {[%emt 0:00:02]} fxe6 {[%emt 0:00:00]} 37. Rxd8 {[%emt 0:00:02]} Rxd8 {[%emt 0:00:00]} 38. Qxe6+ {[%emt 0:00:02]} Qxe6 {[%emt 0:00:01]} 39. Rxe6 $18 {[%emt 0:00:01][%mdl 4096] Endgame KRN-KRN} Rd2+ {[%emt 0:00:02]} 40. Kf3 {[%emt 0:00:04]} Rxh2 {[%emt 0:00:02]} (40... Nf8 $142) 41. b6 {[%emt 0:00:03]} Rb2 {[%emt 0:00:01]} 42. Nd5 {[%emt 0:00:01]} Rb5 {[%emt 0:00:02]} 43. Ke4 {[%emt 0:00:05]} Nf8 {[%emt 0:00:01]} 44. Re7 {[%emt 0:00:02] [#] Threatens to win with b7.} h5 {[%emt 0:00:06]} 45. b7 {[%emt 0:00:01] Kd4 would kill now.} Rb3 {[%emt 0:00:03]} 46. Kd4 {[%emt 0:00:02]} Kh7 {[%emt 0:00:03]} 47. Kc5 {[%emt 0:00:02]} Ng6 {[%emt 0:00:02]} 48. Rd7 {[%emt 0:00:02]} (48. Rc7 $142 h4 49. gxh4 Rxb7 50. Rxb7 Kh6 51. Kd4 Nxh4 52. Ke4 Kg6 53. Ne3) 48... Nf8 {[%emt 0:00:01]} 49. Re7 {[%emt 0:00:02]} (49. Rf7 $18 Kh6 50. Nb4 Ne6+ 51. Kc4) 49... Ng6 $1 {[%emt 0:00:02]} 50. Rc7 {[%emt 0:00:02]} Nf8 {[%emt 0:00:02]} 51. Kc4 {[%emt 0:00:02]} (51. f5 $18 Kg8 52. Nb4 Rxg3 53. Kd6 (53. b8=B Rf3 $16) 53... Kh7 54. b8=Q Ng6 55. fxg6+ Rxg6+ 56. Ke7) 51... Rb1 {[%emt 0:00:04]} 52. Nb4 {[%emt 0:00:02] White is clearly winning.} Rc1+ {[%emt 0:00:01]} 53. Kd3 {[%emt 0:00:03]} Rxc7 {[%emt 0:00:03]} 54. b8=Q {[%emt 0:00:02]} ({Not} 54. b8=R Nd7 55. Rd8 Nf6 $11) 54... Rf7 {[%emt 0:00:00]} 55. Qe5 {[%emt 0:00:02] Intending Nd5 and mate.} g6 {[%emt 0:00:03]} 56. Nd5 {[%emt 0:00:01] Weighted Error Value: White=0.47/Black=0.39} 1-0

[Event "4th Tata Steel India Blitz Open 2022"]
[Site "Kolkota"]
[Date "2022.12.03"]
[Round "2.2"]
[White "Nakamura, Hikaru"]
[Black "So, Wesley"]
[Result "1-0"]
[ECO "D04"]
[WhiteElo "2768"]
[BlackElo "2760"]
[Annotator "TA"]
[PlyCount "79"]
[EventDate "2022.11.29"]
[EventType "tourn"]
[EventCountry "IND"]
[SourceTitle "playchess.com"]
[Source "ChessBase"]
[SourceQuality "1"]
[TimeControl "180+2"]

{[%evp 11,79,-27,-33,-37,-21,-29,0,0,0,0,0,0,-2,-7,3,0,0,0,2,0,0,-2,-1,-5,-6,-6,-6,-11,-6,-3,0,0,0,0,0,0,0,0,8,11,35,0,0,0,0,0,0,0,66,20,80,79,82,70,200,210,276,257,243,222,222,160,581,528,697,667,29983,29984,29996,29997]} 1. Nf3 {[%emt 0:00:01]} c5 {[%emt 0:00:01]} 2. e3 {[%emt 0:00:02]} Nf6 {[%emt 0:00:10]} 3. d4 {[%emt 0:00:04]} d5 {[%emt 0:00:01]} 4. c4 {[%emt 0:00:09]} cxd4 {[%emt 0:00:03]} 5. Nxd4 {[%emt 0:00:05]} e5 {[%emt 0:00:22]} 6. Nf3 {[%emt 0:00:02]} Nc6 {[%emt 0:00:01]} 7. cxd5 {[%emt 0:00:07] D04: Colle System.} Qxd5 {[%emt 0:00:06]} 8. Bd2 $5 {[%emt 0:00:41][%mdl 4] [#] A promising side line.} Ne4 $146 {[%emt 0:00:34]} (8... Be7 {simplifies} 9. Nc3 Qd6 10. Be2 O-O) ({Predecessor:} 8... Bf5 9. Nc3 Qd7 10. Bb5 Bd6 11. Qa4 O-O 12. e4 Bg4 13. Nd5 Nh5 14. Bc3 Bxf3 15. gxf3 {1-0 (39) Siagodnik,A (2157)-Kovalev,V (2554) Minsk 2014}) 9. Nc3 {[%emt 0:00:02] The position is equal.} Nxc3 {[%emt 0:00:01]} 10. Bxc3 {[%emt 0:00:02]} Qxd1+ {[%emt 0:00:04]} 11. Rxd1 {[%emt 0:00:01]} f6 {[%emt 0:00:01]} 12. Bc4 {[%emt 0:00:03]} Bb4 {[%emt 0:00:03]} (12... Ke7 {looks sharper.} 13. Ke2 Be6 14. Bd5 Rd8) 13. Bxb4 {[%emt 0:00:19]} Nxb4 {[%emt 0:00:01]} 14. a3 {[%emt 0:00:01]} Nc6 {[%emt 0:00:01][%cal Bb4c6,Bc6d8,Bd8e6,Be6c5][%mdl 32]} 15. Rc1 {[%emt 0:00:05]} Ke7 {[%emt 0:00:03]} 16. Bd5 {[%emt 0:00:03]} Bd7 {[%emt 0:00:12]} 17. b4 {[%emt 0:00:08]} Rhc8 {[%emt 0:00:04][%cal Oc6b4] [#] And now ...Nxb4! would win.} 18. Ke2 {[%emt 0:00:01]} a5 {[%emt 0:00:05]} 19. b5 {[%emt 0:00:05]} Nd8 {[%emt 0:00:02]} 20. a4 {[%emt 0:00:01]} Be6 {[%emt 0:00:07]} 21. Bxe6 {[%emt 0:00:21]} Nxe6 {[%emt 0:00:02]} 22. Nd2 $1 {[%emt 0:00:01]} Nc5 {[%emt 0:00:09]} 23. Rc4 {[%emt 0:00:01]} Nd7 {[%emt 0:00:07]} 24. Rhc1 {[%emt 0:00:09]} Rxc4 {[%emt 0:00:10]} 25. Rxc4 $11 {[%emt 0:00:10][%mdl 4096] Endgame KRN-KRN} Kd8 {[%emt 0:00:07]} 26. Rg4 {[%emt 0:00:14]} g5 {[%emt 0:00:10]} 27. Nb3 {[%emt 0:00:33]} h5 {[%emt 0:00:24]} 28. Re4 {[%emt 0:00:01]} Nb6 {[%emt 0:00:12]} 29. g4 {[%emt 0:00:07][%cal Bg2g4,Bg4h5,Bh5h6][%mdl 32]} Ke7 {[%emt 0:00:15]} (29... h4 $11) 30. h4 {[%emt 0:00:08]} (30. gxh5 $14 {is more appropriate.} Ke6 31. Rg4) 30... gxh4 {[%emt 0:00:11]} (30... Ke6 $11 {remains equal.}) 31. gxh5 $16 {[%emt 0:00:01]} h3 {[%emt 0:00:01]} 32. Rh4 {[%emt 0:00:00] Against h2. Strongly threatening Nc5.} Kf7 {[%emt 0:00:04] A mistake that costs the game.} ({Better is} 32... h2 $1 $14) 33. Nc5 $18 {[%emt 0:00:04]} ({Worse is} 33. Rxh3 Nxa4 34. h6 b6 $11) 33... Rb8 {[%emt 0:00:07]} 34. h6 {[%emt 0:00:04]} Kg8 {[%emt 0:00:04]} 35. Rxh3 {[%emt 0:00:02]} Kh7 {[%emt 0:00:01]} 36. Kf3 {[%emt 0:00:09] Black must now prevent Ke4.} Nd5 $2 {[%emt 0:00:02]} (36... Rc8 $16 {is a better chance.} 37. Nxb7 Nxa4) 37. Ke4 {[%emt 0:00:01]} Nc3+ {[%emt 0:00:03]} 38. Kf5 {[%emt 0:00:01] [#] Threatens to win with Nd7.} b6 {[%emt 0:00:00]} 39. Nd7 {[%emt 0:00:01]} Rb7 {[%emt 0:00:01]} 40. Nxf6+ {[%emt 0:00:01] Weighted Error Value: White=0.07 (flawless) /Black=0.62} 1-0